fUST/lending_fUST_20250823
["ID","MTS","AMOUNT","RATE_DAILY","PERIOD"]
[381011305,1755940242118,-151.0,0.00026823,7]
[381011306,1755940242128,-151.0,0.00026823,7]
[381011308,1755940242137,-151.0,0.00026823,7]
[381011309,1755940242148,-151.0,0.00026823,7]
[381011311,1755940242157,-151.0,0.00026823,7]
[381011312,1755940242167,-486.149255,0.00026823,7]
[381011313,1755940242176,-151.0,0.00026823,7]
[381011314,1755940242185,-486.149255,0.00026823,7]
[381011315,1755940242195,-151.0,0.00026823,7]
[381011316,1755940242204,-486.149255,0.00026823,7]
[381011317,1755940242213,-151.0,0.00026823,7]
[381011318,1755940242223,-486.149255,0.00026823,7]
[381011319,1755940242233,-260.989484,0.00026823,7]
[381011321,1755940242243,-151.341581,0.00026823,7]
[381011323,1755940242252,-151.0,0.00026823,7]
[381011324,1755940242261,-151.0,0.00026823,7]
[381011326,1755940242270,-151.0,0.00026823,7]
[381011327,1755940242279,-154.011322,0.0002683,7]
[381011328,1755940242289,-151.0,0.0002683,7]
[381011329,1755940242298,-151.0,0.0002683,7]
[381011330,1755940242307,-151.0,0.0002683,7]
[381011331,1755940242316,-151.0,0.0002683,7]
[381011332,1755940242326,-151.0,0.0002683,7]
[381011333,1755940242336,-339.638893,0.0002683,7]
[381011334,1755940242344,-339.638893,0.0002683,7]
[381011335,1755940242354,-339.638893,0.0002683,7]
[381011336,1755940242363,-339.638893,0.0002683,7]
[381011337,1755940242372,-151.0,0.0002683,7]
[381011338,1755940242382,-151.0,0.0002683,7]
[381011339,1755940242478,-232.37252479,0.0002683,7]
[381011340,1755940242489,-302.562714,0.0002683,7]
[381011341,1755940242500,-302.562714,0.0002683,7]
[381011342,1755940242509,-302.562714,0.0002683,7]
[381011343,1755940242519,-302.562714,0.0002683,7]
[381011344,1755940242528,-151.0,0.0002683,7]
[381011345,1755940242537,-151.0,0.0002683,7]
[381011346,1755940242546,-151.0,0.0002683,7]
[381011347,1755940242556,-151.0,0.0002683,7]
[381011348,1755940242566,-290.737089,0.0002683,7]
[381011350,1755940242575,-290.737089,0.0002683,7]
[381011351,1755940242584,-290.737089,0.0002683,7]
[381011352,1755940242593,-290.737089,0.0002683,7]
[381011353,1755940242603,-151.0,0.0002683,7]
[381011355,1755940242612,-151.0,0.0002683,7]
[381011356,1755940242622,-151.0,0.0002683,7]
[381011358,1755940242631,-151.0,0.0002683,7]
[381011360,1755940242641,-151.0,0.0002683,7]
[381011361,1755940242650,-151.864632,0.0002683,7]
[381011362,1755940242660,-151.0,0.0002683,7]
[381011363,1755940242669,-151.0,0.0002683,7]
[381011364,1755940242679,-151.0,0.0002683,7]
[381011365,1755940242689,-151.0,0.0002683,7]
[381011366,1755940242700,-151.0,0.0002683,7]
[381011367,1755940242709,-151.0,0.0002683,7]
[381011368,1755940242718,-151.0,0.0002683,7]
[381011369,1755940242728,-151.0,0.0002683,7]
[381011370,1755940242738,-151.571045,0.0002683,7]
[381011371,1755940242748,-500.0,0.00026871,2]
[381011372,1755940242757,-160.4118759,0.00026873,2]
[381011373,1755940242767,-501.2037536,0.00026873,2]
[381011374,1755940242777,-500.0,0.00026873,2]
[381011375,1755940242788,-501.07379539,0.00026873,2]
[381011376,1755940242797,-500.0,0.00026873,2]
[381011377,1755940242807,-408.58647314,0.00026873,2]
[381011378,1755940242817,-500.60076517,0.00026873,2]
[381011379,1755940242827,-573.51611395,0.00026873,2]
[381011380,1755940242837,-501.40769734,0.00026873,2]
[381011381,1755940242847,-500.0,0.00026873,2]
[381011382,1755940242857,-501.51976869,0.00026873,2]
[381011383,1755940242866,-501.68858118,0.00026873,2]
[381011384,1755940242876,-500.0,0.00026873,2]
[381011385,1755940242885,-501.65133549,0.00026873,2]
[381011386,1755940242894,-501.05434612,0.00026873,2]
[381011387,1755940242905,-500.0,0.00026873,2]
[381011388,1755940242914,-503.24542109,0.00026873,2]
[381011389,1755940242923,-500.0,0.00026873,2]
[381011390,1755940242933,-500.0,0.00026873,2]
[381011391,1755940242943,-215.94678008,0.00026882,2]
[381011392,1755940242953,-160.0,0.00026882,2]
[381011393,1755940242962,-160.0,0.00026882,2]
[381011394,1755940242972,-376.14580871,0.00026882,2]
[381011395,1755940242981,-160.0,0.00026882,2]
[381011396,1755940242990,-160.0,0.00026882,2]
[381011397,1755940242999,-160.0,0.00026882,2]
[381011398,1755940243009,-151.0,0.00026884,2]
[381011399,1755940243018,-198.6198795,0.00026884,2]
[381011400,1755940243028,-151.0,0.00026884,2]
[381011401,1755940243037,-151.0,0.00026884,2]
[381011402,1755940243047,-151.0,0.00026884,2]
[381011403,1755940243056,-151.0,0.00026884,2]
[381011404,1755940243068,-151.19546722,0.00026884,2]
[381011405,1755940243079,-151.0,0.00026884,2]
[381011406,1755940243088,-151.24182201,0.00026884,2]
[381011407,1755940243097,-151.21057319,0.00026884,2]
[381011408,1755940243106,-151.62744155,0.00026884,2]
[381011409,1755940243117,-151.0,0.00026884,2]
[381011410,1755940243126,-151.42477035,0.00026884,2]
[381011411,1755940243136,-151.0,0.00026884,7]
[381011412,1755940243147,-151.0,0.00026884,7]
[381011413,1755940243157,-151.0,0.00026884,7]
[381011414,1755940243166,-151.0,0.00026884,7]
[381011415,1755940243175,-281.867994,0.00026884,7]
[381011416,1755940243184,-151.0,0.00026884,7]
[381011417,1755940243194,-25611.0595649,0.00026887,2]
[381011418,1755940243203,-253.06148882,0.00026887,2]
[381011419,1755940243213,-12116.95187732,0.0002689,2]
[381011420,1755940243222,-3162.37310905,0.00026897,2]
[381011421,1755940243232,-151.0,0.0002699,7]
[381011422,1755940243242,-151.0,0.0002699,7]
[381011423,1755940243252,-151.0,0.0002699,7]
[381011424,1755940243261,-160.0,0.0002699,7]
[381011425,1755940243270,-231.588117,0.0002699,7]
[381011426,1755940243279,-151.0,0.0002699,7]
[381011427,1755940243289,-151.0,0.0002699,7]
[381011428,1755940243298,-151.0,0.0002699,7]
[381011429,1755940243307,-486.149255,0.0002699,7]
[381011430,1755940243317,-175.058208,0.0002699,7]
[381011431,1755940243326,-151.0,0.0002699,7]
[381011432,1755940243336,-486.149255,0.0002699,7]
[381011433,1755940243345,-151.0,0.0002699,7]
[381011434,1755940243354,-486.149255,0.0002699,7]
[381011435,1755940243364,-151.0,0.0002699,7]
[381011436,1755940243374,-486.149255,0.0002699,7]
[381011437,1755940243383,-151.0,0.0002699,7]
[381011438,1755940243392,-151.0,0.0002699,7]
[381011439,1755940243401,-151.0,0.0002699,7]
[381011440,1755940243410,-302.562714,0.0002699,7]
[381011441,1755940243419,-302.562714,0.0002699,7]
[381011442,1755940243429,-302.562714,0.0002699,7]
[381011443,1755940243438,-302.562717,0.0002699,7]
[381011444,1755940243448,-151.0,0.0002699,7]
[381011445,1755940243458,-151.0,0.0002699,7]
[381011446,1755940243467,-151.0,0.0002699,7]
[381011447,1755940243477,-290.737089,0.0002699,7]
[381011448,1755940243486,-290.737089,0.0002699,7]
[381011449,1755940243495,-290.737089,0.0002699,7]
[381011450,1755940243504,-290.737087,0.0002699,7]
[381011451,1755940243513,-151.0,0.0002699,7]
[381011452,1755940243523,-151.0,0.0002699,7]
[381011453,1755940243532,-151.0,0.0002699,7]
[381011454,1755940243541,-151.0,0.0002699,7]
[381011455,1755940243551,-151.0,0.0002699,7]
[381011456,1755940243560,-151.0,0.0002699,7]
[381011457,1755940243569,-2190.9917793,0.00027,2]
[381011458,1755940243578,-2077.55,0.00027,4]
[381011459,1755940243588,-529.05847148,0.00027,3]
[381011460,1755940243597,-151.0,0.00027007,7]
[381011461,1755940243606,-151.0,0.00027007,7]
[381011462,1755940243616,-151.0,0.00027007,7]
[381011463,1755940243625,-151.0,0.00027007,7]
[381011464,1755940243636,-151.0,0.00027007,7]
[381011465,1755940243645,-151.0,0.00027007,7]
[381011466,1755940243654,-151.0,0.00027007,7]
[381011467,1755940243663,-151.0,0.00027007,7]
[381011468,1755940243672,-151.0,0.00027007,7]
[381011469,1755940243682,-151.0,0.00027007,7]
[381011470,1755940243691,-151.0,0.00027007,7]
[381011471,1755940243700,-152.321722,0.00027007,7]
[381011472,1755940243710,-151.0,0.00027007,7]
[381011473,1755940243719,-151.0,0.00027007,7]
[381011474,1755940243729,-154.423291,0.00027007,7]
[381011475,1755940243738,-151.0,0.00027007,7]
[381011476,1755940243747,-339.638893,0.00027007,7]
[381011477,1755940243757,-339.638893,0.00027007,7]
[381011478,1755940243766,-339.638893,0.00027007,7]
[381011479,1755940243775,-339.638893,0.00027007,7]
[381011480,1755940243784,-151.0,0.00027007,7]
[381011481,1755940243794,-158.919429,0.00027007,7]
[381011482,1755940243803,-25611.0595649,0.00027119,2]
[381011483,1755940243812,-253.06148882,0.00027119,2]
[381011484,1755940243821,-151.0,0.00027129,7]
[381011485,1755940243831,-151.0,0.00027129,7]
[381011486,1755940243840,-233.384357,0.00027129,7]
[381011487,1755940243850,-166.345424,0.00027129,7]
[381011488,1755940243859,-339.638893,0.00027129,7]
[381011489,1755940243869,-339.638893,0.00027129,7]
[381011490,1755940243878,-339.638893,0.00027129,7]
[381011491,1755940243887,-339.638893,0.00027129,7]
[381011492,1755940243977,-151.0,0.00027129,7]
[381011493,1755940243987,-152.230318,0.00027129,7]
[381011494,1755940243997,-486.149255,0.00027129,7]
[381011495,1755940244005,-151.0,0.00027129,7]
[381011496,1755940244015,-151.0,0.00027129,7]
[381011497,1755940244024,-151.0,0.00027129,7]
[381011498,1755940244033,-486.149255,0.00027129,7]
[381011499,1755940244042,-151.0,0.00027129,7]
[381011500,1755940244051,-486.149255,0.00027129,7]
[381011501,1755940244061,-155.268852,0.00027129,7]
[381011502,1755940244075,-486.149259,0.00027129,7]
[381011503,1755940244085,-151.0,0.00027129,7]
[381011504,1755940244094,-151.0,0.00027129,7]
[381011505,1755940244103,-151.0,0.00027129,7]
[381011506,1755940244114,-151.0,0.00027139,7]
[381011507,1755940244124,-151.0,0.00027139,7]
[381011508,1755940244133,-151.0,0.00027139,7]
[381011509,1755940244143,-152.649123,0.00027139,7]
[381011510,1755940244153,-151.0,0.00027139,7]
[381011511,1755940244162,-151.0,0.00027139,7]
[381011512,1755940244171,-151.0,0.00027139,7]
[381011513,1755940244180,-151.0,0.00027139,7]
[381011514,1755940244190,-151.0,0.00027139,7]
[381011515,1755940244200,-151.0,0.00027139,7]
[381011516,1755940244209,-151.0,0.00027139,7]
[381011517,1755940244219,-25611.0595649,0.00027142,2]
[381011518,1755940244229,-253.06148882,0.00027142,2]
[381011519,1755940244238,-151.0,0.00027145,7]
[381011520,1755940244248,-151.0,0.00027145,7]
[381011521,1755940244258,-151.0,0.00027145,7]
[381011522,1755940244267,-151.0,0.00027145,7]
[381011523,1755940244276,-151.0,0.00027145,7]
[381011524,1755940244286,-151.0,0.00027145,7]
[381011525,1755940244295,-151.0,0.00027145,7]
[381011526,1755940244304,-151.0,0.00027145,7]
[381011527,1755940244313,-151.0,0.00027145,7]
[381011528,1755940244322,-229.881721,0.00027145,7]
[381011529,1755940244333,-151.0,0.00027146,7]
[381011530,1755940244342,-151.0,0.00027146,7]
[381011531,1755940244351,-151.0,0.00027146,7]
[381011532,1755940244361,-151.0,0.00027146,7]
[381011533,1755940244370,-151.0,0.00027146,7]
[381011534,1755940244379,-151.0,0.00027146,7]
[381011535,1755940244388,-166.204867,0.00027146,7]
[381011536,1755940244398,-151.0,0.00027146,7]
[381011537,1755940244407,-151.0,0.00027146,7]
[381011538,1755940244416,-151.0,0.00027146,7]
[381011539,1755940244426,-151.0,0.00027146,7]
[381011540,1755940244435,-153.171005,0.00027146,7]
[381011541,1755940244445,-151.0,0.00027147,7]
[381011542,1755940244454,-151.0,0.00027147,7]
[381011543,1755940244462,-151.0,0.00027147,7]
[381011544,1755940244472,-244.679009,0.00027147,7]
[381011545,1755940244481,-151.0,0.00027147,7]
[381011546,1755940244490,-151.0,0.00027147,7]
[381011547,1755940244499,-151.0,0.00027147,7]
[381011548,1755940244509,-151.0,0.00027147,7]
[381011549,1755940244518,-215.006849,0.00027147,7]
[381011550,1755940244528,-151.0,0.00027147,7]
[381011551,1755940244537,-151.0,0.00027147,7]
[381011552,1755940244546,-151.0,0.00027147,7]
[381011553,1755940244555,-151.0,0.00027147,7]
[381011554,1755940244565,-151.0,0.00027147,7]
[381011555,1755940244574,-151.0,0.00027147,7]
[381011556,1755940244584,-151.0,0.00027147,7]
[381011557,1755940244594,-151.0,0.00027147,7]
[381011558,1755940244603,-153.35048,0.00027147,7]
[381011559,1755940244613,-339.638893,0.00027152,7]
[381011560,1755940244622,-339.638893,0.00027152,7]
[381011561,1755940244632,-339.638893,0.00027152,7]
[381011562,1755940244641,-339.638885,0.00027152,7]
[381011563,1755940244651,-151.0,0.00027152,7]
[381011564,1755940244660,-151.0,0.00027156,7]
[381011565,1755940244669,-151.0,0.00027156,7]
[381011566,1755940244679,-151.0,0.00027156,7]
[381011567,1755940244689,-151.0,0.00027156,7]
[381011568,1755940244700,-156.373075,0.00027156,7]
[381011569,1755940244709,-168.0,0.00027157,2]
[381011570,1755940244718,-151.0,0.00027158,2]
[381011571,1755940244728,-151.0,0.00027158,2]
[381011572,1755940244737,-151.0,0.00027158,2]
[381011573,1755940244746,-500.0,0.00027173,2]
[381011574,1755940244757,-501.43720702,0.00027173,2]
[381011575,1755940244767,-500.0,0.00027173,2]
[381011576,1755940244776,-500.0,0.00027173,2]
[381011577,1755940244785,-342.30546957,0.00027173,2]
[381011578,1755940244797,-823.0,0.00027217,2]
[381011579,1755940244813,-1000.0,0.00027221,2]
[381011580,1755940244822,-3162.37310905,0.00027264,2]
[381011581,1755940244831,-500.0,0.0002728,2]
[381011582,1755940244842,-7776.73045689,0.000273,2]
[381011583,1755940244852,-151.0,0.000273,7]
[381011584,1755940244861,-151.0,0.000273,7]
[381011585,1755940244870,-151.0,0.000273,7]
[381011586,1755940244879,-151.0,0.000273,7]
[381011587,1755940244889,-151.0,0.000273,7]
[381011588,1755940244898,-151.0,0.000273,7]
[381011589,1755940244906,-154.68755,0.000273,7]
[381011590,1755940244915,-151.0,0.000273,7]
[381011591,1755940244924,-151.0,0.000273,7]
[381011592,1755940244934,-25611.0595649,0.00027343,2]
[381011593,1755940244943,-253.06148882,0.00027343,2]
[381011594,1755940244953,-151.664793,0.00027349,7]
[381011595,1755940244962,-151.0,0.00027349,7]
[381011596,1755940244972,-152.543967,0.00027349,7]
[381011597,1755940244981,-244.679009,0.00027349,7]
[381011598,1755940244990,-151.0,0.00027349,7]
[381011599,1755940245000,-151.0,0.00027349,7]
[381011600,1755940245009,-151.0,0.0002735,7]
[381011601,1755940245019,-151.0,0.0002735,7]
[381011602,1755940245028,-151.0,0.0002735,7]
[381011603,1755940245037,-151.0,0.0002735,7]
[381011604,1755940245047,-152.246591,0.0002735,7]
[381011605,1755940245056,-151.0,0.0002735,7]
[381011606,1755940245068,-151.0,0.0002735,7]
[381011607,1755940245080,-5473.69844024,0.0002735,2]
[381011608,1755940245089,-500.0,0.00027367,2]
[381011609,1755940245098,-500.0,0.00027397,5]
[381011610,1755940245107,-1000.0,0.00027421,5]
[381011611,1755940245116,-186.94659436,0.00027421,5]
[381011612,1755940245126,-503.89497688,0.00027421,5]
[381011613,1755940245137,-1000.0,0.00027421,5]
[381011615,1755940245147,-1000.0,0.00027421,5]
[381011616,1755940245157,-416.96542323,0.00027421,5]
[381011617,1755940245166,-1000.0,0.00027421,5]
[381011618,1755940245176,-151.0,0.00027432,2]
[381011619,1755940245184,-151.0,0.00027432,2]
[381011621,1755940245197,-151.0,0.00027432,2]
[381011622,1755940245206,-500.0,0.00027441,2]
[381011623,1755940245215,-500.0,0.00027454,2]
[381011624,1755940245224,-503.58801118,0.0002749,5]
[381011625,1755940245233,-800.0,0.00027603,2]
[381011626,1755940245243,-168.0,0.0002762,2]
[381011627,1755940245252,-3162.37310905,0.0002763,2]
[381011628,1755940245262,-154.45365,0.00027638,7]
[381011629,1755940245271,-151.0,0.00027638,7]
[381011631,1755940245281,-151.0,0.00027638,7]
[381011633,1755940245371,-156.09748854,0.00027644,2]
[381011634,1755940245381,-151.0,0.00027686,7]
[381011635,1755940245391,-151.0,0.00027686,7]
[381011636,1755940245400,-151.0,0.00027686,7]
[381011637,1755940245409,-244.679009,0.00027686,7]
[381011638,1755940245418,-152.034358,0.00027686,7]
[381011639,1755940245428,-151.0,0.00027686,7]
[381011640,1755940245437,-151.0,0.00027706,2]
[381011641,1755940245447,-198.0,0.00027706,2]
[381011642,1755940245457,-1000.0,0.00027721,5]
[381011643,1755940245466,-502.19665363,0.00027721,5]
[381011644,1755940245475,-1000.0,0.00027721,5]
[381011645,1755940245484,-151.0,0.00027721,7]
[381011646,1755940245494,-151.0,0.00027721,7]
[381011647,1755940245504,-151.0,0.00027721,7]
[381011648,1755940245514,-151.0,0.00027726,7]
[381011649,1755940245524,-151.0,0.00027726,7]
[381011650,1755940245533,-151.0,0.00027726,7]
[381011651,1755940245542,-153.593523,0.00027727,7]
[381011652,1755940245552,-244.679001,0.00027727,7]
[381011653,1755940245561,-154.12271,0.00027727,7]
[381011654,1755940245570,-151.0,0.00027727,7]
[381011655,1755940245579,-151.0,0.00027737,7]
[381011656,1755940245589,-151.335925,0.00027738,7]
[381011657,1755940245599,-151.0,0.00027738,7]
[381011658,1755940245609,-168.0,0.00027767,2]
[381011659,1755940245618,-502.40497477,0.00027768,5]
[381011660,1755940245627,-25611.0595649,0.00027798,2]
[381011661,1755940245636,-253.06148882,0.00027798,2]
[381011662,1755940245646,-900.0,0.00027808,7]
[381011663,1755940245655,-153.0,0.0002781,2]
[381011664,1755940245664,-153.0,0.0002781,2]
[381011665,1755940245673,-153.0,0.0002781,2]
[381011666,1755940245683,-153.0,0.0002781,2]
[381011667,1755940245692,-153.0,0.0002781,2]
[381011668,1755940245703,-153.0,0.0002781,2]
[381011669,1755940245714,-153.0,0.0002781,2]
[381011670,1755940245723,-153.0,0.0002781,2]
[381011671,1755940245733,-153.0,0.0002781,2]
[381011672,1755940245742,-153.0,0.0002781,2]
[381011673,1755940245751,-153.0,0.0002781,2]
[381011674,1755940245761,-153.0,0.0002781,2]
[381011675,1755940245770,-153.0,0.0002781,2]
[381011676,1755940245779,-153.0,0.0002781,2]
[381011677,1755940245788,-153.0,0.0002781,2]
[381011678,1755940245797,-153.0,0.0002781,2]
[381011679,1755940245806,-153.0,0.0002781,2]
[381011680,1755940245815,-153.0,0.0002781,2]
[381011681,1755940245824,-153.0,0.0002781,2]
[381011682,1755940245833,-153.0,0.0002781,2]
[381011683,1755940245843,-153.0,0.0002781,2]
[381011684,1755940245852,-151.0,0.00027828,7]
[381011685,1755940245862,-168.0,0.00027828,2]
[381011686,1755940245871,-151.0,0.00027895,7]
[381011687,1755940245880,-151.0,0.00027895,7]
[381011688,1755940245890,-151.0,0.00027895,7]
[381011689,1755940245899,-250.0,0.00027912,2]
[381011690,1755940245910,-891.0,0.00027915,2]
[381011691,1755940245920,-1500.0,0.00027968,5]
[381011692,1755940245929,-1500.0,0.00027968,5]
[381011693,1755940245939,-1511.23578414,0.00027968,5]
[381011694,1755940245949,-1500.0,0.00027968,5]
[381011695,1755940245958,-150.39251112,0.00027973,5]
[381011696,1755940245967,-193.59344063,0.00027973,5]
[381011697,1755940245976,-1020.54426731,0.00027973,5]
[381011698,1755940245986,-151.0,0.0002798,2]
[381011699,1755940245995,-151.0,0.0002798,7]
[381011700,1755940246005,-25611.0595649,0.0002798,2]
[381011701,1755940246015,-253.06148882,0.0002798,2]
[381011702,1755940246024,-1540.66,0.00027989,3]
[381011703,1755940246034,-770.32,0.00027989,3]
[381011704,1755940246043,-385.16,0.00027989,3]
[381011705,1755940246052,-151.0,0.0002799,7]
[381011706,1755940246061,-151.0,0.0002799,7]
[381011707,1755940246074,-294.741646,0.0002799,7]
[381011708,1755940246083,-151.0,0.0002799,7]
[381011709,1755940246092,-3162.37310905,0.00027997,2]
[381011710,1755940246102,-174.0131738,0.00027997,2]
[381011711,1755940246112,-151.0,0.00027999,2]
[381011712,1755940246123,-121994.85775158,0.00028,2]
[381011713,1755940246132,-3707.9,0.00028,7]
[381011714,1755940246142,-160.0,0.00028,10]
[381011715,1755940246152,-529.05847148,0.00028,10]
[381011716,1755940246162,-529.05847148,0.00028,10]
[381011717,1755940246171,-191181.61727559,0.00028,2]
[381011718,1755940246180,-151.0,0.00028041,7]
[381011719,1755940246189,-151.0,0.00028041,7]
[381011720,1755940246199,-271.580862,0.00028041,7]
[381011721,1755940246208,-151.0,0.00028042,7]
[381011722,1755940246217,-151.0,0.00028042,7]
[381011723,1755940246227,-506.12297764,0.0002807,2]
[381011724,1755940246237,-150.0,0.00028073,5]
[381011725,1755940246247,-200.0,0.00028079,10]
[381011726,1755940246256,-2024.49191056,0.0002808,2]
[381011727,1755940246266,-151.0,0.0002809,7]
[381011728,1755940246275,-151.0,0.0002809,7]
[381011729,1755940246284,-151.0,0.0002809,7]
[381011730,1755940246294,-151.0,0.0002809,7]
[381011731,1755940246307,-151.0,0.0002809,7]
[381011732,1755940246318,-98310.81353214,0.0002809,2]
[381011733,1755940246615,-11460.82627945,0.0002809,2]
[381011734,1755940246912,-277.55444643,0.0002809,2]
[381011735,1755940247361,-854.07459244,0.00021157,2]
[381011736,1755940247385,-1588.67654188,0.00021157,2]
[381011737,1755940247401,-195.743207,0.000249,7]
[381011738,1755940247416,-195.743207,0.000249,7]
[381011739,1755940247430,-195.743207,0.00026,7]
[381011740,1755940247449,-195.743207,0.00026,7]
[381011741,1755940247466,-195.743207,0.00026001,7]
[381011742,1755940247483,-195.743207,0.00026001,7]
[381011743,1755940247502,-195.743207,0.00026618,7]
[381011744,1755940247518,-195.743207,0.00026628,7]
[381011745,1755940247535,-751.94150324,0.00026685,2]
[381011746,1755940248261,-195.743207,0.000249,7]
[381011747,1755940248272,-195.743207,0.000249,7]
[381011748,1755940248281,-176.01608783,0.00026,7]
[381011749,1755940248301,-19.72711917,0.00026,7]
[381011750,1755940248311,-195.743207,0.00026,7]
[381011751,1755940248320,-195.743207,0.00026001,7]
[381011752,1755940248329,-195.743207,0.00026001,7]
[381011753,1755940248339,-195.743207,0.00026618,7]
[381011754,1755940248348,-195.743207,0.00026618,7]
[381011755,1755940248357,-195.743207,0.00026628,7]
[381011756,1755940248367,-195.743207,0.00026628,7]
[381011757,1755940248376,-1260.96836429,0.00026685,2]
[381011758,1755940248387,-645.58183877,0.00026685,2]
[381011759,1755940248397,-215.94678008,0.0002688,2]
[381011760,1755940248406,-153.0,0.0002781,2]
[381011761,1755940248415,-153.0,0.0002781,2]
[381011762,1755940248425,-259950.80574198,0.0002809,2]
[381011763,1755940248435,-2421.99,0.0002811,6]
[381011764,1755940248444,-800.0,0.0002816,2]
[381011765,1755940248454,-800.0,0.00028181,2]
[381011766,1755940248462,-2681.1,0.00028189,3]
[381011767,1755940248471,-411.0,0.000282,20]
[381011768,1755940248480,-151.0,0.000282,7]
[381011769,1755940248490,-151.0,0.000282,7]
[381011770,1755940248500,-151.0,0.000282,20]
[381011771,1755940248509,-323.0,0.000282,2]
[381011772,1755940248518,-800.0,0.00028238,2]
[381011773,1755940248528,-800.0,0.00028252,2]
[381011774,1755940248537,-245.0,0.00028254,2]
[381011775,1755940248546,-800.0,0.00028258,2]
[381011776,1755940248555,-153.0,0.0002826,7]
[381011777,1755940248564,-153.0,0.0002826,7]
[381011778,1755940248573,-153.0,0.0002826,7]
[381011779,1755940248583,-153.0,0.0002826,7]
[381011780,1755940248593,-153.0,0.0002826,7]
[381011781,1755940248603,-153.0,0.0002826,7]
[381011782,1755940248612,-153.0,0.0002826,7]
[381011783,1755940248622,-1500.0,0.00028268,5]
[381011784,1755940248631,-1500.0,0.00028268,5]
[381011785,1755940248640,-150.90113573,0.00028273,5]
[381011786,1755940248649,-1763.0,0.00028276,7]
[381011787,1755940248659,-1763.0,0.00028276,7]
[381011788,1755940248668,-1763.0,0.00028276,7]
[381011789,1755940248677,-1763.0,0.00028276,7]
[381011790,1755940248686,-155.0,0.00028276,7]
[381011791,1755940248695,-1763.0,0.00028276,7]
[381011792,1755940248705,-181.11115038,0.00028276,7]
[381011793,1755940248715,-1763.0,0.00028276,7]
[381011794,1755940248724,-1763.0,0.00028276,7]
[381011795,1755940248733,-1763.0,0.00028276,7]
[381011796,1755940248742,-1763.0,0.00028276,7]
[381011797,1755940248751,-1763.0,0.00028276,7]
[381011798,1755940248761,-1763.0,0.00028276,7]
[381011799,1755940248771,-1763.0,0.00028276,7]
[381011800,1755940248780,-1703.28661676,0.00028276,7]
[381011801,1755940248789,-153.0,0.00028276,7]
[381011802,1755940248799,-153.0,0.00028276,7]
[381011803,1755940248808,-153.0,0.00028276,7]
[381011804,1755940248818,-153.0,0.00028276,7]
[381011805,1755940248827,-153.0,0.00028276,7]
[381011806,1755940248836,-153.0,0.00028276,7]
[381011807,1755940248846,-153.0,0.00028276,7]
[381011808,1755940248855,-153.0,0.00028276,7]
[381011809,1755940248867,-153.0,0.00028276,7]
[381011810,1755940248876,-153.0,0.00028276,7]
[381011811,1755940248886,-153.0,0.00028276,7]
[381011812,1755940248895,-153.0,0.00028276,7]
[381011813,1755940248904,-153.0,0.00028276,7]
[381011814,1755940248914,-153.0,0.00028276,7]
[381011815,1755940248924,-153.0,0.00028276,7]
[381011816,1755940248935,-153.0,0.00028276,7]
[381011817,1755940248944,-153.0,0.00028276,7]